bitfinex/quotes_ETHUSD_20240928
["timestamp","ask_amount","ask_price","bid_price","bid_amount"]
[1727545301363,3.72619,2683.7,2683.3,0.8105]
[1727545301533,7.45247,2683.7,2683.3,2.03544482]
[1727545301731,3.72619,2683.7,2683.3,2.03544482]
[1727545302459,7.45249,2683.7,2683.3,0.8105]
[1727545302630,3.72643,2683.6,2683.3,0.8105]
[1727545302827,3.72654,2683.5,2683.2,0.6025192]
[1727545305171,3.72654,2683.5,2683.1,0.8105]
[1727545305381,3.72678,2683.3,2683.1,0.8105]
[1727545305535,3.72678,2683.3,2682.9,0.8105]
[1727545306030,4.06218,2683.3,2682.7,0.8105]
[1727545306229,3.72705,2683.1,2682.7,0.8105]
[1727545306423,3.72734,2682.9,2682.7,0.8105]
[1727545306623,3.72734,2682.9,2682.5,0.8105]
[1727545307027,3.72705,2683.1,2682.5,0.8105]
[1727545307231,7.45421,2683.1,2682.5,4.53833]
[1727545307671,3.72717,2683.0,2682.5,4.53833]
[1727545308169,3.72717,2683.0,2682.5,8.26611]
[1727545308534,3.72717,2683.0,2682.5,8.26606]
[1727545308743,3.72717,2683.0,2682.5,4.53828]
[1727545308943,3.72717,2683.0,2682.5,8.26607]
[1727545309253,3.72717,2683.0,2682.5,4.53828]
[1727545309441,3.72717,2683.0,2682.6,3.72771]
[1727545311475,3.72717,2683.0,2682.5,4.992108]
[1727545311776,3.72717,2683.0,2682.5,8.719878]
[1727545312283,3.72717,2683.0,2682.5,4.992098]
[1727545313054,3.72717,2683.0,2682.5,8.719888]
[1727545313442,3.72717,2683.0,2682.5,4.992098]
[1727545314981,3.72752,2682.8,2682.5,0.8105]
[1727545316390,3.72773,2682.6,2682.3,0.7915]
[1727545316606,3.7278,2682.6,2682.3,0.7915]
[1727545316892,3.7278,2682.6,2682.1,0.7915]
[1727545317048,3.7278,2682.6,2682.1,4.51988]
[1727545317244,3.72788,2682.5,2682.1,0.7915]
[1727545317444,7.45582,2682.5,2682.1,0.7915]
[1727545317645,3.72802,2682.4,2681.9,4.52009]
[1727545317871,3.72822,2682.3,2681.9,0.7915]
[1727545318576,3.72822,2682.3,2681.8,3.0]
[1727545318994,7.45646,2682.3,2681.8,3.0]
[1727545319170,3.72822,2682.3,2681.8,3.0]
[1727545319371,3.72822,2682.3,2681.8,6.72872]
[1727545319685,0.3354,2682.4,2681.8,6.72872]
[1727545320188,4.06341,2682.4,2681.8,6.72872]
[1727545320355,4.06341,2682.4,2681.8,7.853631]
[1727545320558,4.06341,2682.4,2681.9,3.72869]
[1727545326529,4.06344,2682.4,2681.9,3.72861]
[1727545327421,4.06344,2682.4,2681.9,7.45723]
[1727545328024,4.06344,2682.4,2681.9,3.72861]
[1727545328226,4.06344,2682.4,2681.9,7.45724]
[1727545328622,3.72768,2682.7,2681.9,1.2373651]
[1727545328955,3.72752,2682.8,2682.3,0.7702]
[1727545329450,7.6054,2683.4,2682.7,0.7702]
[1727545329636,0.3354,2683.4,2682.8,3.72733]
[1727545329946,3.72642,2683.6,2682.9,3.72717]
[1727545330169,3.72657,2683.5,2683.0,0.7702]
[1727545330650,3.72657,2683.5,2683.0,4.49729]
[1727545331054,4.434279,2683.7,2683.1,3.72702]
[1727545331238,0.3354,2684.0,2683.3,3.72665]
[1727545331439,3.72592,2683.9,2683.5,0.7702]
[1727545333821,3.72592,2683.9,2683.4,3.72653]
[1727545334021,3.72621,2683.7,2683.2,4.49701]
[1727545334818,3.72621,2683.7,2683.2,0.7702]
[1727545335061,3.72658,2683.5,2682.9,0.7702]
[1727545335356,3.72672,2683.4,2682.9,0.7702]
[1727545336076,3.72658,2683.5,2682.9,0.7702]
[1727545336218,3.7267,2683.4,2682.9,0.7702]
[1727545336556,3.72712,2683.1,2682.6,4.47905]
[1727545336728,7.45428,2683.1,2682.6,0.7514]
[1727545336934,3.72712,2683.1,2682.6,0.7514]
[1727545337664,3.72712,2683.1,2682.6,4.47912]
[1727545338887,0.8162,2683.1,2682.6,0.7514]
[1727545339038,3.72741,2682.9,2682.6,0.7514]
[1727545343176,7.45422,2683.1,2682.6,0.7514]
[1727545343490,3.72721,2683.0,2682.6,0.7514]
[1727545347687,3.72738,2682.9,2682.6,0.7514]
[1727545347893,3.72738,2682.9,2682.4,3.72788]
[1727545349694,3.72721,2683.0,2682.4,7.45579]
[1727545349993,3.72721,2683.0,2682.3,0.7514]
[1727545350156,3.72746,2682.8,2682.3,0.7514]
[1727545350356,4.472932,2682.8,2682.3,0.7514]
[1727545351094,4.472932,2682.8,2682.3,4.47953]
[1727545351782,4.472932,2682.8,2682.3,0.7514]
[1727545352363,3.72759,2682.7,2682.3,0.7514]
[1727545353558,3.72774,2682.6,2682.3,0.7514]
[1727545354086,3.72761,2682.7,2682.3,0.7514]
[1727545356103,3.72781,2682.6,2682.3,0.7514]
[1727545356308,3.72794,2682.5,2682.3,0.7514]
[1727545356467,3.72781,2682.6,2682.3,0.7514]
[1727545356670,7.45561,2682.6,2682.3,0.7514]
[1727545357010,3.7278,2682.6,2682.3,0.7514]
[1727545357969,3.7275,2682.8,2682.3,4.47951]
[1727545358199,3.7275,2682.8,2682.3,5.227461]
[1727545358901,3.7275,2682.8,2682.3,4.47951]
[1727545359386,3.7276,2682.7,2682.3,0.7514]
[1727545360733,7.45503,2682.8,2682.3,0.7514]
[1727545363784,3.7275,2682.8,2682.3,4.47954]
[1727545364522,7.45503,2682.8,2682.3,4.47954]
[1727545365035,3.7275,2682.8,2682.3,4.47954]
[1727545366130,3.72724,2683.0,2682.4,4.53934]
[1727545366288,3.72753,2682.8,2682.4,0.8114]
[1727545368339,3.72759,2682.7,2682.4,0.8114]
[1727545368629,4.100283,2682.8,2682.4,0.8114]
[1727545368857,3.72753,2682.8,2682.4,0.8114]
[1727545373168,3.72731,2682.9,2682.4,4.5394]
[1727545378065,3.72753,2682.8,2682.4,0.8114]
[1727545378851,3.72766,2682.7,2682.4,0.8114]
[1727545379382,3.72745,2682.8,2682.4,0.8114]
[1727545380149,3.72735,2682.9,2682.4,0.8114]
[1727545380350,3.72762,2682.7,2682.4,0.8114]
[1727545381191,7.45474,2682.9,2682.4,4.53939]
[1727545381686,1.95425522,2683.8,2683.1,0.7939]
[1727545381858,7.6054,2683.9,2683.2,0.452099]
[1727545381859,3.72654,2683.5,2683.2,0.452099]
[1727545382059,3.72654,2683.5,2683.1,0.7939]
[1727545382365,3.72638,2683.6,2683.1,0.7939]
[1727545382860,1.56399079,2683.6,2683.1,0.7939]
[1727545383060,3.72689,2683.2,2683.1,0.7939]
[1727545385172,3.72689,2683.2,2682.8,0.7939]
[1727545385704,3.72689,2683.2,2682.8,4.52134]
[1727545386293,3.72689,2683.2,2682.8,0.7939]
[1727545388418,3.72717,2683.0,2682.6,0.8238]
[1727545388618,3.72704,2683.1,2682.6,0.8238]
[1727545388846,3.72724,2683.0,2682.6,0.8238]
[1727545391993,7.78959,2683.1,2682.6,0.8238]
[1727545392193,3.72726,2683.0,2682.6,0.8238]
[1727545395111,3.72732,2682.9,2682.6,0.8238]
[1727545395302,7.45471,2682.9,2682.6,0.8238]
[1727545395624,3.72732,2682.9,2682.6,0.8238]
[1727545395787,4.59983981,2682.9,2682.6,0.8238]
[1727545395991,3.72747,2682.8,2682.6,0.8238]
[1727545399180,3.7276,2682.7,2682.4,0.8248]
[1727545405281,7.45477,2682.9,2682.4,0.8248]
[1727545405449,3.72748,2682.8,2682.4,0.8248]
[1727545405904,3.72734,2682.9,2682.4,0.8248]
[1727545406065,3.72759,2682.7,2682.4,0.8248]
[1727545408663,8.01743308,2682.9,2682.4,0.8248]
[1727545408897,4.29001308,2682.9,2682.4,0.8248]
[1727545409095,3.72747,2682.8,2682.4,0.8248]
[1727545414607,3.72747,2682.8,2681.7,0.75950128]
[1727545414608,3.7287,2681.9,2681.7,0.75950128]
[1727545414904,3.72883,2681.8,2681.7,0.75950128]
[1727545415199,5.29282079,2681.8,2681.7,0.75950128]
[1727545415402,6.22851287,2681.8,2681.7,0.75950128]
[1727545417709,3.72967,2681.2,2681.1,0.8216]
[1727545422928,3.72947,2681.4,2681.1,0.8216]
[1727545423123,7.45899,2681.4,2681.1,0.8216]
[1727545423329,3.72957,2681.3,2681.1,0.8216]
[1727545425826,3.72947,2681.4,2681.1,0.8216]
[1727545426395,3.7296,2681.3,2681.1,0.8216]
[1727545426788,3.72947,2681.4,2681.1,0.8216]
[1727545426992,7.45894,2681.4,2681.1,0.8216]
[1727545427189,7.45895,2681.4,2681.1,0.8216]
[1727545427388,3.72947,2681.4,2681.1,0.8216]
[1727545427927,7.45895,2681.4,2681.1,0.8216]
[1727545428427,3.72947,2681.4,2681.1,0.8216]
[1727545428796,3.7292,2681.6,2681.1,1.56399079]
[1727545429133,3.72892,2681.8,2681.3,3.72953]
[1727545429334,3.72892,2681.8,2681.4,0.7708]
[1727545430113,3.7287,2681.9,2681.4,0.7708]
[1727545430319,3.72871,2681.9,2681.5,1.37722408]
[1727545438515,3.72871,2681.9,2681.6,0.8041]
[1727545446254,3.72852,2682.1,2681.7,0.8041]
[1727545446409,10.99824,2682.3,2681.7,0.8041]
[1727545446410,3.72858,2682.0,2681.7,0.8041]
[1727545447831,3.72838,2682.2,2681.7,0.8041]
[1727545448142,3.72844,2682.1,2681.7,0.8041]
[1727545449237,3.7287,2681.9,2681.7,0.8041]
[1727545450621,7.45699,2682.1,2681.7,0.8041]
[1727545450824,3.72863,2682.0,2681.7,0.8041]
[1727545455419,3.72844,2682.1,2681.7,0.8041]
[1727545455635,7.45696,2682.1,2681.7,0.8041]
[1727545456251,3.72844,2682.1,2681.7,0.8041]
[1727545456453,3.72867,2682.0,2681.7,0.8041]
[1727545457117,3.72844,2682.1,2681.7,0.8041]
[1727545457319,3.72883,2681.8,2681.7,0.8041]
[1727545458663,3.72871,2681.9,2681.7,0.8041]
[1727545459521,3.72883,2681.8,2681.7,0.8041]
[1727545459958,3.72871,2681.9,2681.7,0.8041]
[1727545463229,3.72856,2682.0,2681.7,0.8041]
[1727545465469,7.45704,2682.1,2681.7,0.8041]
[1727545465839,3.72852,2682.1,2681.7,0.8041]
[1727545466035,3.72858,2682.0,2681.7,0.8041]
[1727545466235,3.72856,2682.0,2681.7,0.8041]
[1727545466837,3.72877,2681.9,2681.7,0.8041]
[1727545467267,3.72856,2682.0,2681.7,0.8041]
[1727545469563,7.45679,2682.2,2681.7,0.8041]
[1727545469982,3.72844,2682.1,2681.7,0.8041]
[1727545473888,3.72819,2682.3,2681.9,0.77]
[1727545475688,3.7281,2682.4,2681.9,4.49869]
[1727545476455,3.7281,2682.4,2681.9,0.77]
[1727545476665,3.72822,2682.3,2681.9,0.77]
[1727545478198,3.7281,2682.4,2681.9,4.49869]
[1727545478355,3.7281,2682.4,2681.9,5.10883806]
[1727545480391,3.7281,2682.4,2682.0,4.49315]
[1727545480963,3.7281,2682.4,2682.0,0.7646]
[1727545484893,3.7281,2682.4,2682.0,4.49314]
[1727545485091,3.7281,2682.4,2682.0,5.31533]
[1727545487203,3.7281,2682.4,2682.0,1.58679]
[1727545487373,3.72807,2682.4,2682.0,0.7646]
[1727545490971,3.72816,2682.3,2682.0,0.7646]
[1727545491167,3.72832,2682.2,2682.0,0.7646]
[1727545492012,7.45642,2682.3,2682.0,0.7646]
[1727545492606,3.72836,2682.2,2682.0,0.7646]
[1727545500211,4.06322,2682.6,2682.0,0.7646]
[1727545500426,3.72787,2682.5,2682.0,3.72847]
[1727545500644,2.34975786,2683.1,2682.0,3.72847]
[1727545500645,3.72724,2683.0,2682.5,4.48686]
[1727545500857,3.72677,2683.3,2682.8,0.7591]
[1727545501033,3.7267,2683.4,2682.9,3.72728]
[1727545501336,7.4534,2683.4,2682.9,3.72728]
[1727545501736,7.4534,2683.4,2682.8,0.7591]
[1727545501737,3.72691,2683.2,2682.8,0.7591]
[1727545501941,4.47204,2683.4,2682.8,0.7591]
[1727545502146,3.7268,2683.3,2682.8,0.7591]
[1727545502331,3.72689,2683.2,2682.8,0.7591]
[1727545504543,3.72666,2683.4,2682.8,0.7591]
[1727545504706,3.72677,2683.3,2682.8,0.7591]
[1727545505732,3.72693,2683.2,2682.8,0.7591]
[1727545507211,3.72693,2683.2,2682.8,1.36415908]
[1727545508212,3.72712,2683.1,2682.8,0.7591]
[1727545508457,3.72731,2682.9,2682.4,0.7835]
[1727545508654,3.23276275,2682.9,2682.4,4.962625]
[1727545509651,3.23276275,2682.9,2682.4,1.234655]
[1727545509948,3.72763,2682.7,2682.4,0.7835]
[1727545510258,3.72746,2682.8,2682.4,0.7835]
[1727545512754,3.72779,2682.6,2682.1,4.51189]
[1727545513711,3.72769,2682.7,2682.1,4.51189]
[1727545514542,3.72781,2682.6,2682.1,0.7835]
[1727545514720,3.728,2682.4,2682.1,0.7835]
[1727545515628,3.72821,2682.3,2682.1,0.7835]
[1727545515964,3.72843,2682.1,2681.7,0.7551]
[1727545516168,3.72842,2682.1,2681.7,0.7551]
[1727545516327,3.72842,2682.1,2681.7,1.576416]
[1727545517027,5.29220079,2682.3,2681.7,4.48407]
[1727545517331,3.72842,2682.1,2681.7,0.7551]
[1727545519230,3.72863,2682.0,2681.7,0.7551]
[1727545519425,3.72836,2682.2,2681.7,0.7551]
[1727545519855,3.72843,2682.1,2681.7,0.7551]
[1727545524441,3.72857,2682.0,2681.7,0.7551]
[1727545524630,3.72843,2682.1,2681.7,0.7551]
[1727545525858,7.45696,2682.1,2681.7,0.7551]
[1727545526466,3.72843,2682.1,2681.7,0.7551]
[1727545527949,7.45693,2682.1,2681.7,0.7551]
[1727545528369,3.72878,2681.9,2681.7,0.7551]
[1727545528678,3.72878,2681.9,2681.4,0.7551]
[1727545528679,3.72883,2681.8,2681.4,0.7551]
[1727545528838,3.72883,2681.8,2681.4,1.28442908]
[1727545529671,3.72898,2681.7,2681.4,0.7551]
[1727545530376,7.4576,2681.9,2681.4,0.7551]
[1727545530576,3.72878,2681.9,2681.4,0.7551]
[1727545530875,3.72878,2681.9,2681.4,4.48448]
[1727545531175,3.72884,2681.8,2681.4,4.48448]
[1727545531562,3.72878,2681.9,2681.4,4.48448]
[1727545531958,7.45757,2681.9,2681.4,0.7551]
[1727545532272,3.72878,2681.9,2681.4,0.7551]
[1727545532441,3.72878,2681.9,2681.4,1.203555]
[1727545532772,3.72886,2681.8,2681.4,1.203555]
[1727545533272,3.72878,2681.9,2681.4,1.203555]
[1727545533573,3.72878,2681.9,2681.4,4.932845]
[1727545534776,3.72884,2681.8,2681.4,4.932845]
[1727545535383,7.45778,2681.8,2681.4,1.203555]
[1727545535558,3.72884,2681.8,2681.4,0.7551]
[1727545536156,3.7287,2681.9,2681.4,4.48449]
[1727545536881,3.72897,2681.8,2681.4,0.7551]
[1727545537277,3.72884,2681.8,2681.4,1.20357]
[1727545537482,3.72884,2681.8,2681.4,0.7551]
[1727545540352,3.7287,2681.9,2681.4,4.48446]
[1727545540559,3.7287,2681.9,2681.4,5.305848]
[1727545540759,7.45752,2681.9,2681.4,5.305848]
[1727545541549,3.72888,2681.8,2681.4,1.576488]
[1727545545282,7.45752,2681.9,2681.4,5.305868]
[1727545545491,3.72884,2681.8,2681.4,1.576488]
[1727545545998,3.7287,2681.9,2681.4,1.576488]
[1727545546171,3.7287,2681.9,2681.5,0.5306018]
[1727545546364,3.72887,2681.8,2681.5,0.5306018]
[1727545547073,3.72887,2681.8,2681.4,0.7551]
[1727545549865,3.72904,2681.7,2681.4,0.7551]
[1727545552276,1.56399079,2681.5,2681.2,0.752]
[1727545552611,3.72969,2681.2,2680.8,0.752]
[1727545552965,3.72981,2681.1,2680.8,0.752]
[1727545556206,3.72969,2681.2,2680.8,0.752]
[1727545558712,3.72957,2681.3,2680.8,1.200236]
[1727545559572,3.72957,2681.3,2680.8,4.930446]
[1727545559973,3.72957,2681.3,2680.8,1.200236]
[1727545560678,5.29346079,2681.4,2680.8,1.200236]
[1727545560890,3.72968,2681.2,2680.8,1.200236]
[1727545561779,3.72947,2681.4,2680.8,4.930396]
[1727545561966,3.7296,2681.3,2680.8,4.930396]
[1727545562370,3.72967,2681.2,2680.8,1.200236]
[1727545562609,3.72967,2681.2,2680.8,0.752]
[1727545563268,3.72953,2681.3,2680.8,0.752]
[1727545563473,3.72953,2681.3,2680.9,0.7678]
[1727545566173,3.72969,2681.2,2680.9,0.7678]
[1727545566907,3.72983,2681.1,2680.9,0.7678]
[1727545567410,7.45946,2681.2,2680.9,0.7678]
[1727545568001,3.72969,2681.2,2680.9,0.7678]
[1727545568200,3.72969,2681.2,2680.1,4.88471717]
[1727545568201,1.56399079,2681.1,2680.4,0.7678]
[1727545568525,4.68076669,2681.2,2680.4,0.7678]
[1727545568526,3.73064,2680.5,2680.4,0.7678]
[1727545569413,7.46113,2680.6,2680.4,0.7678]
[1727545569610,3.73053,2680.6,2680.1,0.7678]
[1727545569812,3.73072,2680.5,2680.1,1.140927]
[1727545570737,1.56399079,2680.6,2680.1,4.872107]
[1727545571773,1.56399079,2680.6,2680.2,0.8603357]
[1727545573230,0.3354,2680.9,2680.3,0.7678]
[1727545573434,3.0,2681.0,2680.6,4.49829]
[1727545573741,3.0,2681.0,2680.7,0.449829]
[1727545573902,3.0,2681.0,2680.6,0.7678]
[1727545573903,4.56399079,2681.0,2680.6,0.7678]
[1727545574101,8.29394079,2681.0,2680.6,0.7678]
[1727545574533,5.29394079,2681.0,2680.6,0.7678]
[1727545574733,5.29394079,2681.0,2680.6,4.948126]
[1727545574734,1.56399079,2681.0,2680.6,4.948126]
[1727545574935,3.72976,2681.2,2680.6,1.217636]
[1727545575151,1.56399079,2681.1,2680.8,0.7678]
[1727545575324,4.06487,2681.4,2680.8,4.49798]
[1727545575635,5.29353079,2681.3,2680.8,4.49798]
[1727545576132,5.29353079,2681.3,2680.8,0.7678]
[1727545577748,5.29353079,2681.3,2680.8,4.49802]
[1727545579452,7.27,2681.6,2681.2,0.8277]
[1727545579642,1.56399079,2681.9,2681.4,4.55706]
[1727545579842,1.56399079,2681.7,2681.4,0.8277]
[1727545580201,1.56399079,2681.5,2681.1,4.55748]
[1727545580750,1.56399079,2681.5,2681.1,0.8277]
[1727545580951,1.56399079,2681.3,2681.1,0.8277]
[1727545581918,1.56399079,2681.3,2680.9,3.72998]
[1727545582117,1.56399079,2681.3,2680.9,0.8277]
[1727545582118,5.29353079,2681.3,2680.9,0.8277]
[1727545582313,3.72954,2681.3,2680.9,0.8277]
[1727545583325,3.39284479,2681.4,2680.9,4.55768]
[1727545583526,3.72925,2681.5,2680.9,5.013448]
[1727545584122,3.72925,2681.5,2681.0,3.72995]
[1727545584464,3.0,2681.9,2681.5,0.8277]
[1727545584670,10.99857,2682.0,2681.5,0.8277]
[1727545585154,3.72874,2681.9,2681.5,0.8277]
[1727545585763,10.99856,2682.0,2681.5,4.55695]
[1727545585923,7.27,2682.0,2681.5,0.8277]
[1727545586123,3.72872,2681.9,2681.5,0.8277]
[1727545586357,3.72892,2681.8,2681.5,0.8277]
[1727545590171,4.06432,2681.8,2681.2,0.8277]
[1727545590332,3.72892,2681.8,2681.3,3.72951]
[1727545590527,3.72892,2681.8,2681.3,4.185231]
[1727545591967,3.72901,2681.7,2681.3,0.455721]
[1727545592178,3.72901,2681.7,2681.2,4.55735]
[1727545592371,3.72914,2681.6,2681.2,0.8277]
[1727545592941,3.72865,2682.0,2681.4,0.8277]
[1727545593142,3.72865,2682.0,2681.5,3.72917]
[1727545593368,3.72865,2682.0,2681.5,4.55685]
[1727545593572,3.72865,2682.0,2681.5,8.28602]
[1727545593776,3.72865,2682.0,2681.5,4.55685]
[1727545595981,3.72876,2681.9,2681.5,0.8277]
[1727545596195,3.72884,2681.8,2681.5,0.8277]
[1727545596352,3.72898,2681.7,2681.5,0.8277]
[1727545596887,3.72919,2681.6,2681.3,0.8004]
[1727545597046,3.72919,2681.6,2681.2,0.8004]
[1727545599370,3.72929,2681.5,2681.2,0.8004]
[1727545600096,3.72898,2681.7,2681.2,4.53006]
[1727545600889,3.72913,2681.6,2681.2,4.53006]
[1727545601385,3.72913,2681.6,2681.2,0.8004]
[1727545601736,3.72932,2681.5,2681.2,0.8004]
[1727545602552,3.72905,2681.7,2681.2,4.53]
[1727545602855,3.72899,2681.7,2681.2,4.53]
[1727545603385,3.72899,2681.7,2681.2,8.2596]
[1727545603594,3.72899,2681.7,2681.2,4.53]
[1727545604281,3.72899,2681.7,2681.2,5.355975]
[1727545604993,3.72899,2681.7,2681.3,0.8004]
[1727545607429,7.12168479,2681.8,2681.3,4.52993]
[1727545607728,7.12168479,2681.8,2681.3,0.8004]
[1727545609241,7.12168479,2681.8,2681.3,4.52993]
[1727545609593,3.39284479,2681.8,2681.3,0.8004]
[1727545609794,3.72904,2681.7,2681.3,0.8004]
[1727545609995,4.06444,2681.7,2681.3,0.8004]
[1727545610199,1.56563147,2681.5,2681.3,0.8004]
[1727545614323,5.29489147,2681.5,2681.3,0.8004]
[1727545615009,1.56563147,2681.5,2681.3,0.8004]
[1727545615385,5.29496147,2681.5,2681.0,4.50414]
[1727545616093,1.56563147,2681.5,2681.0,4.50414]
[1727545616332,1.56563147,2681.5,2681.1,3.7297]
[1727545616538,3.72912,2681.6,2681.1,3.7297]
[1727545616897,7.45832,2681.6,2681.1,3.7297]
[1727545617496,3.72926,2681.5,2681.1,3.7297]
[1727545620595,3.72926,2681.5,2681.0,4.954654]
[1727545620795,3.72926,2681.5,2681.0,4.50424]
[1727545621195,3.72926,2681.5,2681.0,8.23418]
[1727545621595,3.72926,2681.5,2681.0,8.23412]
[1727545623033,3.72926,2681.5,2681.0,4.50418]
[1727545623190,3.72926,2681.5,2681.0,8.23406]
[1727545623990,5.29462147,2681.7,2681.1,3.72979]
[1727545624205,3.72899,2681.7,2681.2,3.72957]
[1727545624508,3.72899,2681.7,2681.3,0.7743]
[1727545624932,3.72874,2681.9,2681.3,0.7743]
[1727545625240,2.96870631,2682.0,2681.4,3.72938]
[1727545625241,5.29449147,2681.8,2681.4,3.72938]
[1727545626289,3.72898,2681.7,2681.3,0.7743]
[1727545626827,3.72918,2681.6,2681.3,0.7743]
[1727545628147,3.72937,2681.5,2681.1,0.7743]
[1727545628931,6.23071762,2681.6,2681.1,0.7743]
[1727545628932,3.72941,2681.4,2681.1,0.7743]
[1727545629095,3.72925,2681.5,2681.1,0.7743]
[1727545630234,3.72946,2681.4,2681.1,0.7743]
[1727545630632,3.72926,2681.5,2681.1,0.7743]
[1727545632440,3.72953,2681.3,2681.1,0.7743]
[1727545632622,3.7294,2681.4,2681.1,0.7743]
[1727545632799,4.25888915,2681.4,2680.9,4.50436]
[1727545633343,3.72941,2681.4,2680.9,8.23437]
[1727545633497,4.06466,2681.5,2680.9,8.23437]
[1727545633498,4.06466,2681.5,2680.9,0.7743]
[1727545633700,3.72954,2681.3,2680.9,0.7743]
[1727545634601,3.72954,2681.3,2680.9,4.50438]
[1727545634800,3.72984,2681.1,2680.9,0.7743]
[1727545635015,7.45975,2681.1,2680.7,0.7743]
[1727545635211,3.72984,2681.1,2680.7,0.7743]
[1727545637230,3.73009,2680.9,2680.5,0.8182]
[1727545638303,4.66588915,2681.1,2680.5,0.8182]
[1727545638541,3.72984,2681.1,2680.5,4.54875]
[1727545639036,7.45973,2681.1,2680.5,4.54875]
[1727545639275,3.72996,2681.0,2680.5,4.54875]
[1727545641308,3.73019,2680.9,2680.5,0.8182]
[1727545641504,0.372996,2680.9,2680.5,0.8182]
[1727545641741,3.73046,2680.7,2680.1,8.75237013]
[1727545641920,3.73046,2680.7,2680.2,0.8182]
[1727545642327,5.29586147,2680.8,2680.2,0.8182]
[1727545642636,3.73052,2680.6,2680.2,0.8182]
[1727545645312,3.73023,2680.8,2680.3,4.54904]
[1727545645847,3.73023,2680.8,2680.3,8.27987]
[1727545646037,3.73023,2680.8,2680.3,4.54903]
[1727545646357,3.73023,2680.8,2680.4,0.5003961]
[1727545647254,3.73023,2680.8,2680.3,4.54903]
[1727545648556,3.73023,2680.8,2680.3,0.8182]
[1727545648870,3.73023,2680.8,2680.3,4.54911]
[1727545649285,3.73039,2680.7,2680.3,0.8182]
[1727545650186,3.73056,2680.6,2680.3,0.8182]
[1727545650508,5.29602147,2680.7,2680.0,0.8125]
[1727545650509,3.73073,2680.5,2680.0,0.8125]
[1727545650675,3.731,2680.3,2680.0,0.8125]
[1727545651453,5.29658147,2680.3,2680.0,0.8125]
[1727545651679,4.06642,2680.3,2679.4,0.8125]
[1727545651994,3.73058,2680.6,2680.1,4.54369]
[1727545653788,3.73058,2680.6,2680.1,0.8125]
[1727545654089,7.46122,2680.6,2680.1,0.8125]
[1727545654591,3.73034,2680.8,2680.2,0.8125]
[1727545654888,7.27,2680.9,2680.2,0.8125]
[1727545654889,7.27,2680.9,2680.4,4.54321]
[1727545655185,11.00016,2680.9,2680.4,5.370627]
[1727545656055,7.27,2680.9,2680.5,3.73062]
[1727545656256,7.27,2680.9,2680.6,0.807]
[1727545656474,3.72976,2681.2,2680.6,4.53747]
[1727545656676,3.72976,2681.2,2680.8,0.807]
[1727545657496,3.72944,2681.4,2680.9,0.807]
[1727545657791,3.72944,2681.4,2681.0,0.453722]
[1727545660603,0.3354,2681.7,2681.0,0.453722]
[1727545660899,3.72904,2681.7,2681.3,0.807]
[1727545662581,3.72916,2681.6,2681.3,0.807]
[1727545663693,3.72925,2681.5,2681.3,0.807]
[1727545664389,3.72904,2681.7,2681.3,0.807]
[1727545664390,7.45814,2681.7,2681.3,0.807]
[1727545664824,8.203954,2681.7,2681.3,0.807]
[1727545665577,3.72912,2681.6,2681.3,0.807]
[1727545665775,3.72912,2681.6,2680.5,7.12257137]
[1727545665975,3.7293,2681.5,2681.0,0.8209]
[1727545666598,3.7294,2681.4,2681.0,0.8209]
[1727545671410,3.72925,2681.5,2681.0,4.55084]
[1727545671711,4.06432,2681.8,2681.2,3.7296]
[1727545671872,3.72898,2681.7,2681.2,8.28009]
[1727545672070,3.72898,2681.7,2681.2,4.55049]
[1727545677800,3.72898,2681.7,2681.3,0.8039]
[1727545681109,7.45803,2681.7,2681.3,0.8039]
[1727545681310,3.72898,2681.7,2681.3,0.8039]
[1727545682614,7.45803,2681.7,2681.3,0.8039]
[1727545682808,3.72898,2681.7,2681.3,0.8039]
[1727545683303,7.45806,2681.7,2681.3,0.8039]
[1727545683885,3.72911,2681.6,2681.3,0.8039]
[1727545686036,3.72898,2681.7,2681.3,0.8039]
[1727545686224,3.0,2681.8,2681.3,3.72946]
[1727545686534,6.72891,2681.8,2681.4,0.7555]
[1727545690604,10.45785,2681.8,2681.4,0.7555]
[1727545690803,6.72891,2681.8,2681.4,0.7555]
[1727545691740,10.45783,2681.8,2681.4,0.7555]
[1727545692411,3.72899,2681.7,2681.4,0.7555]
[1727545692769,3.72919,2681.6,2681.4,0.7555]
[1727545693816,3.72925,2681.5,2681.4,0.7555]
[1727545694137,3.72925,2681.5,2681.2,0.7555]
[1727545694549,3.72919,2681.6,2681.2,0.7555]
[1727545698548,3.72899,2681.7,2681.2,0.7555]
[1727545698914,3.72912,2681.6,2681.2,0.7555]
[1727545702684,3.72899,2681.7,2681.2,4.48515]
[1727545707681,3.72925,2681.6,2681.2,0.7555]
[1727545708591,8.48339739,2681.7,2681.2,0.7555]
[1727545709491,3.72923,2681.6,2681.2,0.7555]
[1727545709690,4.87758374,2681.6,2681.2,0.7555]
[1727545712064,3.72941,2681.4,2681.2,0.7555]
[1727545713103,3.72926,2681.5,2681.2,0.7555]
[1727545714384,5.21298374,2681.6,2681.2,0.7555]
[1727545714615,3.72935,2681.5,2681.2,0.7555]
[1727545714817,8.94223374,2681.6,2681.2,0.7555]
[1727545714999,4.25054837,2681.5,2681.2,0.7555]
[1727545716236,3.72925,2681.5,2681.2,0.7555]
[1727545716831,1.14835374,2681.6,2681.2,4.48505]
[1727545716987,6.7287,2681.9,2681.5,0.8197]
[1727545717190,4.34295805,2681.8,2681.5,0.8197]